bitfinex-derivatives/quotes_SOLF0:USTF0_20241211
["timestamp","ask_amount","ask_price","bid_price","bid_amount"]
[1733918401672,6.67794016,224.93,224.86,6.67794016]
[1733918402778,2.18,224.92,224.86,6.67794016]
[1733918403578,2.18,224.92,224.83,6.06856882]
[1733918403779,2.18,224.92,224.87,6.67794016]
[1733918404078,2.18,224.92,224.88,4.01310092]
[1733918404278,2.18,224.92,224.89,4.01310092]
[1733918404472,2.18,224.92,224.87,6.67794016]
[1733918404779,2.18,224.92,224.9,4.01503236]
[1733918405078,2.18,224.92,224.91,4.01503236]
[1733918405776,8.85794016,224.92,224.91,4.01503236]
[1733918407171,2.18,224.92,224.91,4.01503236]
[1733918407871,6.67794016,224.95,224.91,4.01504233]
[1733918408176,2.18,224.94,224.92,4.01448164]
[1733918408378,2.18,224.95,224.93,4.01448164]
[1733918408880,6.67794016,224.98,224.93,4.01448164]
[1733918408881,2.18,224.96,224.93,4.01448164]
[1733918410176,6.67794016,224.98,224.94,4.01448164]
[1733918410379,2.18,224.97,224.95,4.01448164]
[1733918410576,2.18,224.97,224.96,4.01448164]
[1733918410970,2.18,224.97,224.91,6.67794016]
[1733918411372,2.18,224.97,224.92,4.00679041]
[1733918411680,46.22,225.22,224.95,6.67794016]
[1733918411980,6.67794016,225.08,225.01,6.67794016]
[1733918412182,2.18,225.07,225.02,4.00679041]
[1733918412377,2.18,225.07,225.03,4.00679041]
[1733918412580,2.18,225.07,225.04,4.00679041]
[1733918412779,2.18,225.07,225.05,4.00679041]
[1733918413083,8.07994016,225.12,225.06,4.00679041]
[1733918413381,2.18,225.11,225.05,6.67794016]
[1733918413580,2.18,225.11,225.06,3.99253305]
[1733918413781,2.18,225.11,225.03,6.67794016]
[1733918414078,1.4024,225.21,225.05,6.67794016]
[1733918414279,6.67794016,225.15,225.07,6.67794016]
[1733918414480,2.18,225.14,225.07,6.67794016]
[1733918414779,6.67794016,225.11,225.01,1.3349]
[1733918415081,6.67794016,225.07,225.01,1.3349]
[1733918415280,2.18,225.06,225.01,1.3349]
[1733918415481,2.18,225.06,224.96,1.4037]
[1733918415482,6.67794016,225.03,224.96,1.4037]
[1733918415776,2.7639,225.2,224.96,1.4037]
[1733918415777,2.7639,225.2,225.02,6.67794016]
[1733918415982,6.67794016,225.18,225.12,6.67794016]
[1733918416182,6.67794016,225.18,225.1,6.67794016]
[1733918416881,2.18,225.17,225.1,6.67794016]
[1733918417578,8.85794016,225.17,225.1,6.67794016]
[1733918418387,2.18,225.17,225.1,6.67794016]
[1733918418681,8.85794016,225.17,225.1,6.67794016]
[1733918419075,2.18,225.17,225.1,6.67794016]
[1733918419380,2.18,225.17,225.1,13.07794016]
[1733918419577,6.67794016,225.19,225.1,16.17794016]
[1733918419778,2.18,225.18,225.12,6.67794016]
[1733918420581,2.18,225.18,225.13,3.55]
[1733918421079,2.18,225.18,225.13,7.75]
[1733918421280,5.22105123,225.23,225.13,12.99]
[1733918421481,6.67794016,225.19,225.13,12.99]
[1733918421980,2.18,225.21,225.14,6.67794016]
[1733918421981,8.85794016,225.21,225.14,6.67794016]
[1733918422777,2.18,225.2,225.14,6.67794016]
[1733918423776,2.18,225.2,225.13,16.54]
[1733918424081,6.67794016,225.19,225.13,16.54]
[1733918424284,6.67794016,225.21,225.13,16.54]
[1733918424683,2.18,225.2,225.13,16.54]
[1733918426182,6.67794016,225.17,225.13,16.54]
[1733918427384,6.67794016,225.19,225.13,16.54]
[1733918428683,2.8209,225.32,225.18,6.67794016]
[1733918428878,6.67794016,225.31,225.25,6.67794016]
[1733918429078,11.65884016,225.32,225.25,6.67794016]
[1733918429282,10.28904016,225.32,225.25,6.67794016]
[1733918429481,2.16,225.32,225.27,6.67794016]
[1733918429684,1.4542,225.44,225.31,6.67794016]
[1733918429879,6.67794016,225.39,225.31,6.67794016]
[1733918430078,6.67794016,225.39,225.33,6.67794016]
[1733918430287,6.67794016,225.4,225.35,6.67794016]
[1733918431187,12.55405359,225.43,225.3,10.39405359]
[1733918432683,2.16,225.42,225.3,10.39405359]
[1733918433989,2.16,225.43,225.33,10.39405359]
[1733918435090,11.74365359,225.48,225.33,10.39405359]
[1733918435286,10.39405359,225.42,225.27,3.91520469]
[1733918435492,2.16,225.41,225.28,13.94405359]
[1733918437490,2.16,225.4,225.28,13.94405359]
[1733918437685,2.16,225.39,225.28,13.94405359]
[1733918439390,2.16,225.39,225.29,8.8]
[1733918440591,2.16,225.39,225.3,3.90449715]
[1733918440786,2.16,225.39,225.29,8.8]
[1733918440982,2.16,225.39,225.3,3.90437494]
[1733918441182,2.16,225.39,225.29,8.8]
[1733918441382,2.16,225.39,225.3,3.90437282]
[1733918441688,2.16,225.39,225.29,8.8]
[1733918441990,2.16,225.39,225.3,7.00524255]
[1733918442191,2.16,225.39,225.3,3.1]
[1733918442687,12.55405359,225.39,225.3,3.1]
[1733918443484,2.16,225.39,225.3,3.1]
[1733918444084,12.55405359,225.39,225.3,3.1]
[1733918444988,2.766,225.38,225.3,3.1]
[1733918446785,1.3788,225.47,225.3,3.1]
[1733918446988,10.39405359,225.45,225.31,10.39405359]
[1733918447290,2.16,225.44,225.31,14.50845359]
[1733918447489,2.16,225.44,225.32,3.91329303]
[1733918447688,2.16,225.44,225.33,3.91329303]
[1733918447892,2.16,225.44,225.34,3.91329303]
[1733918448186,2.16,225.44,225.35,8.11329303]
[1733918449286,2.16,225.44,225.36,3.91329303]
[1733918449796,2.16,225.44,225.35,10.82]
[1733918449998,2.16,225.44,225.36,3.91665924]
[1733918450189,2.16,225.44,225.37,3.91665924]
[1733918450489,2.16,225.44,225.38,3.91665924]
[1733918450693,2.16,225.44,225.35,10.82]
[1733918451994,2.16,225.44,225.36,3.9190943]
[1733918452195,2.16,225.44,225.37,3.54]
[1733918452196,10.39405359,225.42,225.37,3.54]
[1733918453194,10.39405359,225.39,225.37,3.54]
[1733918453396,2.16,225.38,225.37,3.54]
[1733918457700,4.3774,225.38,225.37,3.54]
[1733918461404,2.2174,225.38,225.37,3.54]
[1733918461611,4.3774,225.38,225.37,3.54]
[1733918463402,2.2174,225.38,225.37,7.74]
[1733918463706,2.2174,225.39,225.37,7.74]
[1733918463906,2.16,225.41,225.37,7.74]
[1733918464110,2.2172,225.4,225.37,7.74]
[1733918464807,2.2174,225.39,225.37,7.74]
[1733918466110,2.2174,225.39,225.38,3.54]
[1733918466706,2.16,225.42,225.38,9.83]
[1733918467605,2.2172,225.41,225.38,9.83]
[1733918468011,1.2172,225.41,225.38,9.83]
[1733918468410,1.2172,225.41,225.38,12.93]
[1733918469903,1.2172,225.41,225.38,16.47]
[1733918470409,1.2172,225.41,225.38,22.59]
[1733918471214,1.2172,225.41,225.39,6.64927071]
[1733918471904,2.2173,225.39,225.38,22.59]
[1733918472310,2.2173,225.39,225.38,19.49]
[1733918473017,8.86657071,225.39,225.38,19.49]
[1733918475209,12.6155004,225.39,225.38,19.49]
[1733918476614,12.6155004,225.39,225.38,23.69]
[1733918477314,12.6155004,225.39,225.27,1.3908]
[1733918477315,10.3982004,225.39,225.27,1.3908]
[1733918477524,2.218,225.33,225.27,1.3908]
[1733918477819,2.16,225.32,225.23,10.3982004]
[1733918478420,2.16,225.32,225.22,1.4247]
[1733918478716,2.16,225.32,225.26,11.2]
[1733918478913,2.2184,225.28,225.26,11.2]
[1733918479115,2.16,225.27,225.26,18.3]
[1733918480212,1.3618,225.4,225.26,18.3]
[1733918480213,2.16,225.28,225.26,18.3]
[1733918482915,10.3982004,225.47,225.27,11.7729004]
[1733918483116,2.16,225.46,225.36,2.2176]
[1733918483428,2.16,225.46,225.37,2.8262]
[1733918483814,2.2171,225.42,225.37,2.8262]
[1733918484120,2.16,225.46,225.37,2.8262]
[1733918484319,2.16,225.46,225.37,13.2244004]
[1733918484924,2.16,225.46,225.37,2.8262]
[1733918485221,2.2168,225.44,225.37,2.8262]
[1733918485417,2.16,225.43,225.37,2.8262]
[1733918486115,10.3982004,225.49,225.37,2.8262]
[1733918486423,2.16,225.48,225.37,2.8262]
[1733918487326,2.2169,225.44,225.37,2.8262]
[1733918487820,2.2167,225.46,225.37,5.0437]
[1733918488618,4.3767,225.45,225.37,5.0437]
[1733918488817,2.16,225.45,225.37,2.8262]
[1733918489423,2.217,225.43,225.37,8.19010201]
[1733918489621,2.16,225.45,225.37,8.19010201]
[1733918490026,2.2171,225.42,225.37,8.19010201]
[1733918490222,2.16,225.45,225.37,8.19010201]
[1733918490424,2.16,225.45,225.37,2.8262]
[1733918490820,2.16,225.45,225.28,6.06856882]
[1733918490821,10.3982004,225.43,225.28,6.06856882]
[1733918491022,2.2177,225.36,225.28,10.3982004]
[1733918491219,2.16,225.36,225.28,12.6166004]
[1733918491423,2.16,225.36,225.28,10.3982004]
[1733918492125,2.2177,225.35,225.28,12.6165004]
[1733918492330,2.2177,225.35,225.31,5.45609083]
[1733918494129,2.16,225.36,225.31,5.45609083]
[1733918494325,4.3776,225.36,225.31,5.45609083]
[1733918494528,2.16,225.36,225.31,5.45609083]
[1733918494720,4.3776,225.36,225.31,7.67419083]
[1733918496830,2.16,225.36,225.31,7.67419083]
[1733918497327,5.32451634,225.52,225.33,10.3982004]
[1733918497534,10.3982004,225.5,225.36,10.3982004]
[1733918497836,2.2167,225.46,225.38,2.2173]
[1733918498034,2.16,225.45,225.38,2.2173]
[1733918499231,2.16,225.45,225.37,2.7335]
[1733918500531,2.2171,225.41,225.37,2.7335]
[1733918501535,2.217,225.43,225.37,4.951]
[1733918501737,2.16,225.45,225.37,4.951]
[1733918501937,2.16,225.45,225.38,3.54]
[1733918502838,2.217,225.43,225.38,8.5]
[1733918503038,4.377,225.43,225.38,8.5]
[1733918503541,4.377,225.43,225.38,10.7174]
[1733918503741,2.16,225.43,225.38,8.5]
[1733918503944,2.16,225.45,225.38,8.5]
[1733918504842,2.16,225.45,225.38,13.76]
[1733918504843,2.2171,225.42,225.38,13.76]
[1733918505142,2.16,225.45,225.38,13.76]
[1733918505744,2.16,225.45,225.38,17.3]
[1733918506147,2.16,225.45,225.38,20.4]
[1733918506945,2.2172,225.41,225.38,20.4]
[1733918507146,2.16,225.4,225.38,20.4]
[1733918507546,4.3772,225.4,225.38,20.4]
[1733918508150,2.2173,225.39,225.38,20.4]
[1733918508649,2.16,225.4,225.38,20.4]
[1733918509144,2.2173,225.39,225.38,20.4]
[1733918510442,2.16,225.4,225.38,20.4]
[1733918510848,10.3982004,225.47,225.38,20.4]
[1733918511044,2.217,225.43,225.38,20.4]
[1733918511354,2.16,225.46,225.38,20.4]
[1733918511551,2.2171,225.42,225.38,20.4]
[1733918513045,2.2168,225.45,225.39,2.2173]
[1733918513243,4.3768,225.45,225.4,6.6485335]
[1733918514345,2.2168,225.45,225.4,6.6485335]
[1733918514749,2.2168,225.45,225.4,8.8657335]
[1733918515045,2.2168,225.45,225.4,6.6485335]
[1733918515351,6.6485335,225.46,225.4,6.6485335]
[1733918515851,2.2169,225.43,225.4,6.6485335]
[1733918517551,2.2169,225.43,225.41,3.54]
[1733918518956,2.16,225.45,225.41,3.54]
[1733918519158,4.3768,225.45,225.41,3.54]
[1733918520154,2.2168,225.45,225.41,3.54]
[1733918520661,2.2168,225.44,225.42,3.54]
[1733918522956,2.2169,225.43,225.42,10.89]
[1733918526062,8.8654335,225.43,225.42,10.89]
[1733918526963,8.8654335,225.43,225.42,16.78]
[1733918527263,2.2169,225.43,225.42,16.78]
[1733918528059,8.8654335,225.43,225.42,16.78]
[1733918529460,8.8654335,225.43,225.42,14.5783]
[1733918529663,6.6485335,225.43,225.41,3.54]
[1733918529859,4.377,225.42,225.41,3.54]
[1733918532458,2.2177,225.35,225.34,3.1]
[1733918532659,2.16,225.35,225.3,5.37704291]
[1733918533562,2.2181,225.32,225.31,11.32]
[1733918535363,6.6485335,225.43,225.31,17.9685335]
[1733918535666,8.8085335,225.43,225.34,6.6485335]
[1733918535859,2.2173,225.4,225.34,6.6485335]
[1733918536058,8.8085335,225.43,225.34,6.6485335]
[1733918536269,8.8085335,225.43,225.36,6.6485335]
[1733918537666,2.2174,225.39,225.36,6.6485335]
[1733918538376,6.6485335,225.41,225.34,6.6485335]
[1733918539079,2.2176,225.37,225.34,6.6485335]
[1733918539377,2.2176,225.37,225.31,11.32]
[1733918539577,2.2176,225.37,225.34,6.6485335]
[1733918539879,2.16,225.38,225.34,6.6485335]
[1733918540073,1.3658,225.53,225.36,6.6485335]
[1733918540269,2.2164,225.49,225.39,6.6485335]
[1733918540477,6.6485335,225.47,225.39,6.6485335]
[1733918540778,2.16,225.46,225.39,6.6485335]
[1733918540969,2.2169,225.44,225.39,6.6485335]
[1733918543272,0.0355,225.44,225.39,6.6485335]
[1733918543472,2.16,225.48,225.43,6.6485335]
[1733918543691,2.16,225.49,225.43,6.6485335]
[1733918543875,2.2166,225.47,225.41,6.6485335]
[1733918544069,6.6485335,225.46,225.4,6.6485335]
[1733918544475,2.2169,225.44,225.4,6.6485335]
[1733918546776,2.75,225.55,225.42,5.32185515]
[1733918546976,2.2166,225.47,225.42,11.97038865]
[1733918547777,185.12040744,225.73,225.46,6.6485335]
[1733918547981,6.6485335,225.54,225.46,6.6485335]
[1733918548372,1.3995,225.64,225.46,6.6485335]
[1733918548373,6.6485335,225.52,225.46,6.6485335]
[1733918548576,6.6485335,225.52,225.43,1.3157]
[1733918548781,6.6485335,225.52,225.46,6.6485335]
[1733918549185,2.2162,225.51,225.46,6.6485335]
[1733918549380,8.8085335,225.53,225.46,9.7485335]
[1733918549878,2.2157,225.56,225.5,6.6485335]
[1733918550079,6.6485335,225.58,225.5,6.6485335]
[1733918550280,6.6485335,225.58,225.52,6.6485335]
[1733918551286,2.2155,225.58,225.54,6.6485335]
[1733918551481,8.8085335,225.6,225.46,5.26]
[1733918551781,8.8085335,225.6,225.53,6.6485335]
[1733918551782,2.2157,225.56,225.53,6.6485335]
[1733918552380,1.3995,225.65,225.51,6.6485335]
[1733918552582,6.6485335,225.59,225.51,6.6485335]
[1733918552882,6.6485335,225.59,225.49,2.2163]
[1733918552883,2.16,225.58,225.49,2.2163]
[1733918553083,2.2158,225.55,225.51,6.6485335]
[1733918553883,2.16,225.58,225.51,6.54]
[1733918553884,2.2157,225.56,225.51,6.54]
[1733918554090,6.6485335,225.57,225.51,6.54]
[1733918555190,2.216,225.53,225.51,6.54]
[1733918558191,13.32,225.84,225.51,13.1885335]
[1733918558391,6.6485335,225.61,225.53,6.6485335]
[1733918558792,2.16,225.6,225.53,6.6485335]
[1733918558994,6.6485335,225.59,225.53,6.6485335]
[1733918559693,2.2156,225.57,225.53,6.6485335]
[1733918560798,2.2156,225.57,225.54,5.4]
[1733918561698,2.2156,225.57,225.54,8.94]
[1733918562394,6.6485335,225.59,225.54,8.94]
[1733918562699,7.9020786,225.71,225.54,8.94]
[1733918562900,6.6485335,225.64,225.57,6.6485335]
[1733918563197,2.16,225.63,225.57,6.6485335]
[1733918563397,2.2146,225.67,225.61,2.2151]
[1733918563599,6.6485335,225.67,225.54,8.94]
[1733918563798,6.6485335,225.67,225.6,6.6485335]
[1733918563999,2.2148,225.65,225.6,6.6485335]
[1733918564195,8.8633335,225.65,225.6,6.6485335]
[1733918564399,2.2148,225.65,225.6,6.6485335]
[1733918565002,2.2148,225.65,225.6,10.1885335]
[1733918565702,2.2149,225.64,225.6,10.1885335]
[1733918568405,6.6485335,225.66,225.6,3.54]
[1733918568600,2.16,225.67,225.6,3.54]
[1733918568601,6.6485335,225.64,225.6,3.54]
[1733918569004,2.2152,225.61,225.6,3.54]
[1733918569202,4.3752,225.61,225.6,3.54]
[1733918571304,11.0237335,225.61,225.6,3.54]
[1733918574509,2.2152,225.61,225.6,3.54]
[1733918574806,6.6485335,225.65,225.6,3.54]
[1733918575004,2.16,225.64,225.6,3.54]
[1733918575604,2.2151,225.62,225.6,3.54]
[1733918577210,2.2151,225.62,225.6,9.44]
[1733918578012,2.2152,225.61,225.6,9.44]
[1733918580008,2.2152,225.61,225.6,16.18]
[1733918581511,8.8637335,225.61,225.6,16.18]
[1733918582912,2.16,225.69,225.6,16.18]
[1733918583115,2.16,225.69,225.62,6.6485335]
[1733918583116,8.8085335,225.69,225.62,6.6485335]
[1733918583312,2.2151,225.63,225.6,12.64]
[1733918583619,6.6485335,225.65,225.63,1.3249]
[1733918583913,2.16,225.64,225.63,1.3249]
[1733918584711,4.3749,225.64,225.63,1.3249]
[1733918585111,4.3749,225.64,225.63,4.8649]
[1733918585318,2.2149,225.64,225.63,4.8649]
[1733918585519,4.3749,225.64,225.63,2.685]
[1733918585821,2.2152,225.61,225.6,12.64]
[1733918586017,8.8637335,225.61,225.6,12.64]
[1733918592022,2.2153,225.6,225.59,4.7299]
[1733918594022,2.216,225.53,225.52,3.1]
[1733918594325,8.8085335,225.53,225.47,5.26918806]
[1733918595118,2.2161,225.52,225.51,9.51]
[1733918599329,2.16,225.55,225.51,16.1585335]
[1733918599530,2.16,225.55,225.51,9.51]
[1733918599531,8.8085335,225.55,225.51,9.51]
[1733918599828,2.2153,225.6,225.51,9.51]
[1733918600129,6.6485335,225.57,225.51,9.51]
[1733918601332,2.16,225.56,225.51,9.51]
[1733918602033,2.16,225.56,225.52,6.6485335]
[1733918602231,2.2158,225.55,225.52,6.6485335]
[1733918604433,8.8085335,225.58,225.52,6.6485335]
[1733918604828,8.8085335,225.58,225.51,9.51]
[1733918605128,2.2157,225.56,225.51,9.51]
[1733918605324,8.8085335,225.58,225.51,9.51]
[1733918606032,2.2159,225.54,225.51,9.51]
[1733918607236,2.216,225.53,225.51,9.51]
[1733918607434,2.16,225.58,225.52,6.6485335]
[1733918607732,6.6485335,225.57,225.52,6.6485335]
[1733918608034,6.6485335,225.55,225.51,9.51]
[1733918608733,2.2161,225.52,225.51,9.51]
[1733918610231,4.4274,225.77,225.51,9.51]
[1733918610433,6.6485335,225.65,225.57,6.6485335]
[1733918610937,6.6485335,225.65,225.57,8.8640335]
[1733918611231,6.6485335,225.63,225.52,2.16]
[1733918611432,2.2153,225.6,225.53,6.18824437]
[1733918611738,2.2153,225.6,225.56,6.6485335]
[1733918611937,8.8085335,225.63,225.54,5.34254437]
[1733918612135,2.2154,225.59,225.56,6.6485335]
[1733918612334,2.2154,225.59,225.57,3.97234437]
[1733918612637,2.2154,225.59,225.58,3.97234437]
[1733918613534,2.2153,225.6,225.58,10.62087787]
[1733918613835,2.2153,225.6,225.59,3.97234437]
[1733918616039,8.8638335,225.6,225.59,3.97234437]
[1733918616234,2.2158,225.55,225.54,1.82]
[1733918616435,2.2158,225.55,225.54,5.79684248]
[1733918617341,2.2158,225.55,225.54,1.82]
[1733918618238,2.2158,225.55,225.54,5.79842033]
[1733918618642,6.6485335,225.56,225.51,3.73]
[1733918618833,8.8646335,225.52,225.51,3.73]
[1733918619031,11.0246335,225.52,225.51,7.71015406]
[1733918619232,11.0246335,225.52,225.51,14.09015406]
[1733918619432,11.0246335,225.52,225.51,10.11]
[1733918622034,4.3761,225.52,225.51,10.11]
[1733918623443,4.3761,225.52,225.51,14.08761379]
[1733918625739,1.3197,225.69,225.51,14.08761379]
[1733918625945,18.081519,225.68,225.53,6.6485335]
[1733918626142,6.6485335,225.6,225.54,3.97761379]
[1733918626342,2.2155,225.58,225.54,3.97761379]
[1733918626744,2.2155,225.58,225.55,3.97761379]
[1733918627042,2.2155,225.58,225.56,3.97761379]
[1733918627242,2.2155,225.58,225.55,6.6485335]
[1733918627545,2.2155,225.58,225.57,3.73]
[1733918627744,2.2155,225.58,225.57,7.70232283]
[1733918629545,4.3754,225.59,225.57,7.70232283]
[1733918629846,4.3754,225.59,225.58,3.97232283]
[1733918630141,4.3751,225.62,225.58,3.97232283]
[1733918630443,2.16,225.62,225.59,3.97232283]
[1733918630644,2.16,225.62,225.57,10.3785335]
[1733918630851,2.16,225.62,225.6,3.97281098]
[1733918631147,2.16,225.62,225.57,10.3785335]
[1733918631348,2.16,225.62,225.58,3.97264326]
[1733918631746,5.36813521,225.77,225.58,3.97264326]
[1733918632041,6.6485335,225.67,225.61,6.6485335]
[1733918632245,6.6485335,225.67,225.62,3.97264326]
[1733918632547,6.6485335,225.67,225.63,3.97264326]
[1733918632844,6.6485335,225.67,225.64,3.97264326]
[1733918633046,6.6485335,225.67,225.65,3.97264326]
[1733918633251,8.8631335,225.67,225.66,3.97264326]
[1733918634045,8.8631335,225.67,225.6,6.6485335]
[1733918634046,2.2148,225.65,225.6,6.6485335]
[1733918634253,2.2148,225.65,225.61,3.96930485]
[1733918634546,2.2148,225.65,225.62,3.96930485]
[1733918634743,2.2148,225.65,225.63,3.96930485]
[1733918634949,2.2148,225.65,225.64,3.96930485]
[1733918635543,2.2147,225.66,225.64,3.96930485]
[1733918635743,2.2147,225.66,225.65,3.96930485]
[1733918636147,8.8632335,225.66,225.65,3.96930485]
[1733918636342,2.2137,225.77,225.65,3.96930485]
[1733918636545,6.6485335,225.7,225.61,6.6485335]
[1733918636746,6.6485335,225.7,225.64,5.42562758]
[1733918636951,6.6485335,225.7,225.65,3.96532951]
[1733918637247,6.6485335,225.7,225.64,5.42562758]
[1733918637451,6.6485335,225.7,225.66,3.96471186]
[1733918637654,2.2144,225.69,225.64,5.42562758]
[1733918638052,2.2144,225.69,225.65,3.96368309]
[1733918638352,2.2144,225.69,225.66,3.96368309]
[1733918638552,2.2144,225.69,225.64,5.42562758]
[1733918638754,2.2144,225.69,225.65,3.96217855]
[1733918639054,8.8085335,225.7,225.66,3.96217855]
[1733918639256,2.2144,225.69,225.67,3.96217855]
[1733918639559,2.2144,225.69,225.68,3.96217855]
[1733918640752,35.63056291,225.86,225.68,3.96217855]
[1733918640955,6.6485335,225.79,225.73,6.6485335]
[1733918641151,35.63056291,225.86,225.75,6.6485335]
[1733918641358,1.3883,226.01,225.79,6.6485335]
[1733918641557,6.6485335,225.86,225.79,6.6485335]
[1733918641853,8.8085335,225.86,225.79,6.6485335]
[1733918642049,2.16,225.86,225.79,6.6485335]
[1733918642251,6.6485335,225.85,225.79,6.6485335]
[1733918642649,2.2131,225.82,225.79,6.6485335]
[1733918643157,2.16,225.86,225.74,10.35422037]
[1733918643350,2.16,225.86,225.75,3.94418776]
[1733918643557,2.16,225.86,225.76,3.94418776]
[1733918643852,2.16,225.86,225.77,3.94491771]
[1733918644055,2.2133,225.8,225.74,10.35422037]
[1733918644252,2.2133,225.8,225.75,3.9463736]
[1733918644459,2.2133,225.8,225.76,3.9463736]
[1733918644654,2.2133,225.8,225.74,10.35422037]
[1733918645348,2.2133,225.8,225.78,5.40554625]
[1733918646758,2.2132,225.81,225.78,5.40554625]
[1733918647455,2.2132,225.81,225.79,5.73]
[1733918648551,36.26123953,225.98,225.79,9.45]
[1733918648754,10.35422037,225.91,225.79,9.45]
[1733918648950,2.2126,225.88,225.79,9.45]
[1733918649150,2.16,225.9,225.79,9.45]
[1733918650054,2.16,225.9,225.8,3.92825771]
[1733918650350,37.57363953,225.98,225.81,6.13850508]
[1733918650551,10.35422037,225.95,225.81,3.5651]
[1733918650757,10.35422037,225.95,225.81,1.3519]
[1733918650948,10.35422037,225.92,225.81,1.3519]
[1733918651349,10.35422037,225.92,225.82,3.92205599]
[1733918651350,2.16,225.91,225.82,3.92205599]
[1733918651554,2.16,225.91,225.81,1.3519]
[1733918652357,10.35422037,225.89,225.79,9.45]
[1733918652653,2.16,225.88,225.79,9.45]
[1733918652855,10.35422037,225.86,225.79,9.45]
[1733918653353,2.2133,225.8,225.79,9.45]
[1733918656252,2.16,225.82,225.79,9.45]
[1733918656455,2.2127,225.86,225.79,9.45]
[1733918656756,2.2127,225.86,225.8,10.35422037]
[1733918658353,2.16,225.9,225.79,9.45]
[1733918659351,2.2133,225.8,225.79,9.45]
[1733918663564,2.16,225.82,225.79,9.45]
[1733918664060,2.2133,225.8,225.79,9.45]
[1733918666455,2.2133,225.8,225.79,7.2714]
[1733918671067,4.3733,225.8,225.79,7.2714]
[1733918672470,4.3733,225.8,225.79,3.72]
[1733918674566,4.3733,225.8,225.79,7.67023125]
[1733918675369,2.2133,225.8,225.79,7.67023125]
[1733918676375,2.2133,225.8,225.79,7.67420094]
[1733918676769,2.2133,225.8,225.79,11.6286286]
[1733918676968,2.2133,225.8,225.79,7.67442766]
[1733918679283,2.2133,225.8,225.79,14.30093909]
[1733918679581,1.4251,225.89,225.79,14.30093909]
[1733918679879,2.16,225.88,225.83,6.62651143]
[1733918680179,2.16,225.88,225.84,3.95872184]
[1733918680379,2.16,225.88,225.85,3.95872184]
[1733918680571,1.4251,225.89,225.86,3.95872184]
[1733918680773,1.4251,225.89,225.83,6.62651143]
[1733918680774,2.16,225.88,225.83,6.62651143]
[1733918681179,2.16,225.88,225.78,7.8535]
[1733918681180,2.2128,225.85,225.84,7.67990083]
[1733918683079,2.2127,225.86,225.84,7.68058363]
[1733918683388,2.2127,225.86,225.85,3.96058363]
[1733918686087,2.16,225.87,225.84,3.72]
[1733918686289,2.2128,225.85,225.84,3.72]
[1733918686684,2.2128,225.85,225.84,7.68285184]
[1733918686988,2.2128,225.85,225.84,11.64561509]
[1733918689394,2.2128,225.85,225.84,7.68276325]
[1733918689887,2.2128,225.85,225.84,11.64232064]
[1733918695099,2.2128,225.85,225.84,7.68276325]
[1733918695292,2.16,225.87,225.83,5.73]
[1733918695597,2.2129,225.84,225.83,3.5517]
[1733918702398,10.34956287,225.84,225.78,3.1]
[1733918702703,10.34956287,225.8,225.74,0.22496]
[1733918702901,2.16,225.79,225.75,3.96087144]
[1733918703096,2.6914,225.86,225.74,0.22496]
[1733918703304,6.62834926,225.83,225.75,6.62834926]
[1733918703504,2.16,225.85,225.77,6.62834926]
[1733918703802,6.62834926,225.84,225.76,12.03834926]
[1733918703998,2.16,225.85,225.77,3.1]
[1733918703999,6.62834926,225.82,225.77,3.1]
[1733918704599,2.2135,225.78,225.77,3.1]
[1733918704902,4.3735,225.78,225.77,3.1]
[1733918705400,11.00184926,225.78,225.77,3.1]
[1733918705605,2.6914,225.86,225.76,5.41]
[1733918705793,2.2136,225.77,225.76,5.41]